lending/lending_fUSD_20241229
["ID","MTS","AMOUNT","RATE_DAILY","PERIOD"]
[347067973,1735489838623,-500.0,0.00011536,2]
[347067975,1735489838632,-2019.15,0.00011536,2]
[347067977,1735489838642,-500.0,0.00011536,2]
[347067979,1735489838652,-1697.84,0.00011536,2]
[347067981,1735489838661,-3038.02,0.00011536,2]
[347067983,1735489838670,-500.0,0.00011536,2]
[347067985,1735489838680,-212.61045414,0.00011536,2]
[347067987,1735489838689,-852.73,0.00011536,2]
[347067989,1735489838699,-1431.9,0.00011536,2]
[347067992,1735489838709,-500.0,0.00011536,2]
[347067993,1735489838718,-500.0,0.00011536,2]
[347067996,1735489838727,-500.0,0.00011536,2]
[347067998,1735489838740,-896.87,0.00011536,2]
[347067999,1735489838749,-3588.08,0.00011536,2]
[347068001,1735489838758,-644.35,0.00011536,2]
[347068003,1735489838768,-500.0,0.00011537,2]
[347068005,1735489838776,-500.0,0.00011537,2]
[347068007,1735489838787,-580.22,0.00011537,2]
[347068009,1735489838796,-2281.68,0.00011537,2]
[347068011,1735489838805,-1662.07,0.00011537,2]
[347068013,1735489838816,-1469.79,0.00011537,2]
[347068015,1735489838826,-500.0,0.00011537,2]
[347068017,1735489838835,-1592.56,0.00011537,2]
[347068019,1735489838844,-500.0,0.00011537,2]
[347068021,1735489838853,-500.0,0.00011537,2]
[347068023,1735489838862,-3558.18,0.00011537,2]
[347068025,1735489838872,-643.7,0.00011537,2]
[347068027,1735489838882,-988.16,0.00011537,2]
[347068029,1735489838891,-500.0,0.00011537,2]
[347068031,1735489838900,-1652.5,0.00011537,2]
[347068033,1735489838910,-517.89,0.00011537,2]
[347068035,1735489838919,-900.7,0.00011537,2]
[347068037,1735489838928,-5047.81,0.00011537,2]
[347068039,1735489838938,-674.01,0.00011537,2]
[347068041,1735489838947,-500.0,0.00011537,2]
[347068043,1735489838956,-531.9,0.00011537,2]
[347068045,1735489838965,-603.5,0.00011537,2]
[347068047,1735489838975,-1051.42,0.00011537,2]
[347068049,1735489838984,-1024.0,0.00011537,2]
[347068051,1735489838994,-3190.14,0.00011537,2]
[347068053,1735489839003,-833.89,0.00011537,2]
[347068055,1735489839012,-1151.35,0.00011537,2]
[347068057,1735489839021,-4647.61,0.00011537,2]
[347068059,1735489839031,-756.97,0.00011537,2]
[347068061,1735489839040,-500.0,0.00011537,2]
[347068063,1735489839049,-500.0,0.00011537,2]
[347068065,1735489839058,-3472.39,0.00011537,2]
[347068067,1735489839068,-500.0,0.00011537,2]
[347068069,1735489839077,-500.0,0.00011537,2]
[347068071,1735489839086,-190.874477,0.00011537,2]
[347068073,1735489839095,-1011.11,0.00011537,2]
[347068075,1735489839104,-2584.04,0.00011537,2]
[347068077,1735489839113,-8442.531517,0.00011537,2]
[347068079,1735489839122,-8306.353808,0.00011537,2]
[347068081,1735489839132,-2630.44,0.00011537,2]
[347068083,1735489839141,-1068.1,0.00011537,2]
[347068085,1735489839150,-1103.17,0.00011537,2]
[347068087,1735489839159,-18294.83,0.00011537,2]
[347068089,1735489839168,-1002.9,0.00011537,2]
[347068091,1735489839179,-3065.29,0.00011537,2]
[347068093,1735489839188,-500.0,0.00011537,2]
[347068095,1735489839197,-2185.03,0.00011537,2]
[347068097,1735489839206,-1272.65,0.00011537,2]
[347068099,1735489839215,-9894.2,0.00011537,2]
[347068101,1735489839224,-500.0,0.00011537,2]
[347068103,1735489839234,-3029.99,0.00011537,2]
[347068105,1735489839244,-1886.48,0.00011537,2]
[347068107,1735489839253,-6076.11,0.00011537,2]
[347068109,1735489839263,-1453.24,0.00011537,2]
[347068111,1735489839272,-1635.32,0.00011537,2]
[347068113,1735489839281,-1891.39,0.00011537,2]
[347068114,1735489839291,-1542.14,0.00011537,2]
[347068116,1735489839300,-3536.31,0.00011537,2]
[347068119,1735489839310,-500.0,0.00011537,2]
[347068120,1735489839319,-1072.15,0.00011537,2]
[347068123,1735489839329,-839.13,0.00011537,2]
[347068125,1735489839338,-500.0,0.00011537,2]
[347068127,1735489839348,-1665.61,0.00011537,2]
[347068129,1735489839358,-500.0,0.00011537,2]
[347068131,1735489839367,-11603.09,0.00011537,2]
[347068133,1735489839376,-1447.4,0.00011537,2]
[347068135,1735489839387,-500.0,0.00011537,2]
[347068137,1735489839396,-2519.46,0.00011537,2]
[347068139,1735489839406,-1858.03,0.00011537,2]
[347068141,1735489839415,-500.0,0.00011537,2]
[347068143,1735489839425,-789.12,0.00011538,2]
[347068145,1735489839435,-500.0,0.00011538,2]
[347068147,1735489839446,-640.3,0.00011538,2]
[347068149,1735489839455,-500.0,0.00011538,2]
[347068151,1735489839464,-682.07,0.00011538,2]
[347068153,1735489839473,-500.0,0.00011538,2]
[347068154,1735489839482,-500.0,0.00011538,2]
[347068157,1735489839493,-500.0,0.00011538,2]
[347068158,1735489839503,-500.0,0.00011538,2]
[347068161,1735489839513,-500.0,0.00011538,2]
[347068163,1735489839522,-353.84518728,0.00011538,2]
[347068164,1735489839532,-742.88,0.00011538,2]
[347068166,1735489839541,-500.0,0.00011538,2]
[347068168,1735489839550,-500.0,0.00011538,2]
[347068170,1735489839560,-578.48,0.00011538,2]
[347068172,1735489839569,-969.72,0.00011538,2]
[347068174,1735489839578,-766.29,0.00011538,2]
[347068176,1735489839587,-500.0,0.00011538,2]
[347068177,1735489839596,-500.0,0.00011538,2]
[347068178,1735489839606,-500.0,0.00011538,2]
[347068179,1735489839615,-500.0,0.00011538,2]
[347068180,1735489839624,-500.0,0.00011538,2]
[347068181,1735489839633,-950.22,0.00011538,2]
[347068182,1735489839642,-500.0,0.00011538,2]
[347068183,1735489839651,-500.0,0.00011538,2]
[347068184,1735489839660,-500.0,0.00011538,2]
[347068185,1735489839668,-500.0,0.00011538,2]
[347068187,1735489839677,-500.0,0.00011538,2]
[347068189,1735489839686,-500.0,0.00011538,2]
[347068191,1735489839695,-500.0,0.00011538,2]
[347068192,1735489839704,-500.0,0.00011538,2]
[347068194,1735489839713,-500.0,0.00011538,2]
[347068196,1735489839722,-912.48,0.00011538,2]
[347068199,1735489839732,-500.0,0.00011538,2]
[347068200,1735489839746,-661.25,0.00011538,2]
[347068203,1735489839755,-500.0,0.00011538,2]
[347068206,1735489839764,-500.0,0.00011538,2]
[347068208,1735489839773,-500.0,0.00011538,2]
[347068211,1735489839784,-500.0,0.00011538,2]
[347068213,1735489839793,-1210.33,0.00011538,2]
[347068215,1735489839802,-500.0,0.00011538,2]
[347068217,1735489839813,-500.0,0.00011538,2]
[347068220,1735489839822,-500.0,0.00011538,2]
[347068223,1735489839831,-500.0,0.00011538,2]
[347068225,1735489839840,-500.0,0.00011538,2]
[347068227,1735489839849,-500.0,0.00011538,2]
[347068229,1735489839858,-500.0,0.00011538,2]
[347068231,1735489839867,-502.31,0.00011538,2]
[347068233,1735489839877,-500.0,0.00011538,2]
[347068235,1735489839886,-500.0,0.00011538,2]
[347068237,1735489839896,-500.0,0.00011538,2]
[347068239,1735489839906,-500.0,0.00011538,2]
[347068241,1735489839915,-500.0,0.00011538,2]
[347068243,1735489839925,-500.0,0.00011538,2]
[347068245,1735489839934,-500.0,0.00011538,2]
[347068247,1735489839943,-500.0,0.00011538,2]
[347068249,1735489839952,-644.59,0.00011538,2]
[347068251,1735489839961,-500.0,0.00011538,2]
[347068253,1735489839970,-500.0,0.00011538,2]
[347068255,1735489839979,-500.0,0.00011538,2]
[347068257,1735489839990,-1137.54,0.00011538,2]
[347068259,1735489840000,-500.0,0.00011538,2]
[347068261,1735489840009,-500.0,0.00011538,2]
[347068263,1735489840018,-500.0,0.00011538,2]
[347068265,1735489840027,-814.21,0.00011538,2]
[347068266,1735489840037,-500.0,0.00011538,2]
[347068268,1735489840046,-500.0,0.00011538,2]
[347068270,1735489840055,-717.64,0.00011538,2]
[347068272,1735489840064,-1253.64,0.00011538,2]
[347068274,1735489840073,-500.0,0.00011538,2]
[347068276,1735489840082,-500.0,0.00011538,2]
[347068278,1735489840092,-500.0,0.00011538,2]
[347068280,1735489840102,-508.54,0.00011538,2]
[347068282,1735489840111,-500.0,0.00011538,2]
[347068284,1735489840121,-500.0,0.00011538,2]
[347068286,1735489840130,-500.0,0.00011538,2]
[347068288,1735489840140,-500.0,0.00011538,2]
[347068290,1735489840149,-524.62846816,0.00011538,2]
[347068292,1735489840158,-500.0,0.00011538,2]
[347068294,1735489840167,-500.0,0.00011538,2]
[347068296,1735489840177,-500.0,0.00011538,2]
[347068298,1735489840186,-500.0,0.00011538,2]
[347068300,1735489840195,-500.0,0.00011538,2]
[347068302,1735489840204,-1130.46,0.00011538,2]
[347068304,1735489840214,-623.05,0.00011538,2]
[347068306,1735489840224,-500.0,0.00011538,2]
[347068308,1735489840234,-500.0,0.00011538,2]
[347068310,1735489840244,-913.53,0.00011538,2]
[347068312,1735489840253,-1090.0,0.00011538,2]
[347068314,1735489840263,-605.54,0.00011538,2]
[347068316,1735489840272,-500.0,0.00011538,2]
[347068318,1735489840281,-626.31,0.00011538,2]
[347068320,1735489840290,-500.0,0.00011538,2]
[347068322,1735489840302,-500.0,0.00011538,2]
[347068324,1735489840311,-517.37,0.00011538,2]
[347068326,1735489840321,-532.09829063,0.00011538,2]
[347068328,1735489840331,-500.0,0.00011538,2]
[347068330,1735489840341,-500.0,0.00011538,2]
[347068333,1735489840350,-500.0,0.00011538,2]
[347068334,1735489840360,-500.0,0.00011538,2]
[347068336,1735489840369,-687.05,0.00011538,2]
[347068338,1735489840378,-500.0,0.00011538,2]
[347068340,1735489840388,-500.0,0.00011538,2]
[347068343,1735489840398,-549.65,0.00011538,2]
[347068345,1735489840407,-500.0,0.00011538,2]
[347068347,1735489840416,-500.0,0.00011538,2]
[347068349,1735489840426,-853.21,0.00011538,2]
[347068351,1735489840435,-500.0,0.00011538,2]
[347068353,1735489840445,-500.0,0.00011538,2]
[347068355,1735489840456,-500.0,0.00011538,2]
[347068357,1735489840465,-500.0,0.00011538,2]
[347068359,1735489840474,-500.0,0.00011538,2]
[347068361,1735489840486,-500.0,0.00011538,2]
[347068363,1735489840497,-500.0,0.00011538,2]
[347068366,1735489840507,-500.0,0.00011538,2]
[347068369,1735489840516,-529.86,0.00011538,2]
[347068372,1735489840525,-725.9,0.00011538,2]
[347068374,1735489840535,-500.0,0.00011538,2]
[347068377,1735489840545,-500.0,0.00011538,2]
[347068379,1735489840554,-500.0,0.00011538,2]
[347068381,1735489840563,-1263.22,0.00011538,2]
[347068383,1735489840573,-500.0,0.00011538,2]
[347068385,1735489840582,-500.0,0.00011538,2]
[347068387,1735489840592,-500.0,0.00011538,2]
[347068389,1735489840602,-500.0,0.00011538,2]
[347068391,1735489840612,-500.0,0.00011538,2]
[347068393,1735489840621,-920.97,0.00011538,2]
[347068395,1735489840631,-500.0,0.00011538,2]
[347068397,1735489840640,-500.0,0.00011538,2]
[347068399,1735489840649,-500.0,0.00011538,2]
[347068401,1735489840658,-500.0,0.00011538,2]
[347068403,1735489840667,-1244.8,0.00011538,2]
[347068404,1735489840677,-500.0,0.00011538,2]
[347068407,1735489840686,-784.27,0.00011538,2]
[347068409,1735489840696,-700.7,0.00011538,2]
[347068410,1735489840706,-500.0,0.00011538,2]
[347068413,1735489840716,-500.0,0.00011538,2]
[347068415,1735489840725,-503.37,0.00011538,2]
[347068417,1735489840735,-500.0,0.00011538,2]
[347068418,1735489840749,-500.0,0.00011538,2]
[347068421,1735489840758,-896.25,0.00011538,2]
[347068422,1735489840768,-500.0,0.00011538,2]
[347068424,1735489840778,-1160.49,0.00011538,2]
[347068427,1735489840789,-500.0,0.00011538,2]
[347068429,1735489840798,-573.61,0.00011538,2]
[347068431,1735489840808,-500.0,0.00011538,2]
[347068432,1735489840817,-500.0,0.00011538,2]
[347068434,1735489840827,-500.0,0.00011538,2]
[347068436,1735489840836,-1348.21,0.00011538,2]
[347068438,1735489840845,-500.0,0.00011538,2]
[347068440,1735489840854,-500.0,0.00011538,2]
[347068442,1735489840864,-389.58448205,0.00011538,2]
[347068444,1735489840873,-500.0,0.00011538,2]
[347068446,1735489840882,-500.0,0.00011538,2]
[347068449,1735489840892,-548.05,0.00011538,2]
[347068450,1735489840901,-500.0,0.00011538,2]
[347068452,1735489840911,-500.0,0.00011538,2]
[347068454,1735489840920,-500.0,0.00011538,2]
[347068456,1735489840929,-500.0,0.00011538,2]
[347068458,1735489840938,-500.0,0.00011538,2]
[347068461,1735489840948,-500.0,0.00011538,2]
[347068463,1735489840957,-707.32,0.00011538,2]
[347068465,1735489840966,-500.0,0.00011538,2]
[347068466,1735489840975,-500.0,0.00011538,2]
[347068469,1735489840985,-761.45,0.00011538,2]
[347068471,1735489840994,-515.67,0.00011538,2]
[347068473,1735489841003,-500.0,0.00011538,2]
[347068474,1735489841012,-500.0,0.00011538,2]
[347068477,1735489841021,-655.36,0.00011538,2]
[347068478,1735489841031,-500.0,0.00011538,2]
[347068481,1735489841041,-195.02875721,0.00011538,2]
[347068482,1735489841050,-500.0,0.00011538,2]
[347068485,1735489841059,-1111.12,0.00011538,2]
[347068487,1735489841069,-500.0,0.00011538,2]
[347068489,1735489841078,-504.53,0.00011538,2]
[347068491,1735489841087,-500.0,0.00011538,2]
[347068492,1735489841096,-500.0,0.00011538,2]
[347068494,1735489841106,-500.0,0.00011538,2]
[347068496,1735489841116,-500.0,0.00011538,2]
[347068498,1735489841125,-500.0,0.00011538,2]
[347068501,1735489841134,-500.0,0.00011538,2]
[347068503,1735489841144,-939.99,0.00011538,2]
[347068505,1735489841153,-500.0,0.00011538,2]
[347068507,1735489841162,-500.0,0.00011538,2]
[347068509,1735489841171,-500.0,0.00011538,2]
[347068511,1735489841180,-500.0,0.00011538,2]
[347068513,1735489841189,-670.09,0.00011538,2]
[347068515,1735489841199,-500.0,0.00011538,2]
[347068542,1735489841444,-500.0,0.00011538,2]
[347068544,1735489841454,-500.0,0.00011538,2]
[347068546,1735489841463,-500.0,0.00011538,2]
[347068548,1735489841472,-500.0,0.00011538,2]
[347068550,1735489841481,-500.0,0.00011538,2]
[347068552,1735489841492,-500.0,0.00011538,2]
[347068554,1735489841501,-500.0,0.00011538,2]
[347068556,1735489841510,-500.0,0.00011539,2]
[347068558,1735489841520,-500.0,0.00011539,2]
[347068560,1735489841529,-500.0,0.00011539,2]
[347068562,1735489841538,-180.04247679,0.00011539,2]
[347068564,1735489841548,-600.99340985,0.00011539,2]
[347068566,1735489841557,-500.0,0.00011539,2]
[347068568,1735489841566,-500.0,0.00011539,2]
[347068570,1735489841574,-500.0,0.00011539,2]
[347068572,1735489841585,-500.0,0.00011539,2]
[347068574,1735489841594,-504.85240761,0.00011539,2]
[347068576,1735489841604,-500.0,0.00011539,2]
[347068578,1735489841613,-500.0,0.00011539,2]
[347068580,1735489841623,-500.0,0.00011539,2]
[347068582,1735489841632,-635.03,0.00011539,2]
[347068584,1735489841642,-500.0,0.00011539,2]
[347068586,1735489841651,-739.18,0.00011539,2]
[347068588,1735489841660,-500.0,0.00011539,2]
[347068590,1735489841670,-500.0,0.00011539,2]
[347068592,1735489841681,-3511.19,0.00011539,2]
[347068595,1735489841691,-1016.64,0.00011539,2]
[347068597,1735489841701,-500.0,0.00011539,2]
[347068598,1735489841709,-500.0,0.00011539,2]
[347068601,1735489841719,-500.0,0.00011539,2]
[347068603,1735489841728,-831.8,0.00011539,2]
[347068605,1735489841742,-507.05743493,0.00011539,2]
[347068606,1735489841751,-1944.21,0.00011539,2]
[347068608,1735489841760,-500.0,0.00011539,2]
[347068610,1735489841769,-500.0,0.00011539,2]
[347068613,1735489841779,-535.91367857,0.00011539,2]
[347068614,1735489841787,-500.0,0.00011539,2]
[347068616,1735489841796,-1205.91,0.00011539,2]
[347068618,1735489841805,-500.0,0.00011539,2]
[347068621,1735489841814,-500.0,0.00011539,2]
[347068623,1735489841824,-3599.17,0.00011539,2]
[347068624,1735489841833,-500.0,0.00011539,7]
[347068626,1735489841842,-778.37,0.00011539,2]
[347068628,1735489841851,-500.0,0.00011539,2]
[347068630,1735489841860,-764.39,0.00011539,2]
[347068632,1735489841869,-500.0,0.00011539,2]
[347068634,1735489841878,-858.22,0.00011539,2]
[347068635,1735489841887,-500.0,0.00011539,2]
[347068636,1735489841895,-500.0,0.00011539,2]
[347068637,1735489841904,-500.0,0.00011539,2]
[347068638,1735489841914,-500.0,0.00011539,2]
[347068639,1735489841922,-1078.5,0.00011539,2]
[347068640,1735489841931,-500.0,0.00011539,2]
[347068641,1735489841940,-2340.55,0.00011539,2]
[347068642,1735489841949,-1053.53,0.00011539,2]
[347068643,1735489841959,-531.43,0.00011539,2]
[347068645,1735489841967,-500.0,0.00011539,2]
[347068647,1735489841976,-1041.24,0.00011539,2]
[347068649,1735489841987,-3755.9,0.00011539,2]
[347068651,1735489841996,-500.0,0.00011539,2]
[347068653,1735489842005,-500.0,0.00011539,2]
[347068655,1735489842014,-500.0,0.00011539,2]
[347068657,1735489842023,-500.0,0.00011539,2]
[347068659,1735489842032,-679.8,0.00011539,2]
[347068661,1735489842041,-3562.83,0.00011539,2]
[347068663,1735489842050,-500.0,0.00011539,2]
[347068665,1735489842059,-500.0,0.00011539,2]
[347068667,1735489842068,-500.0,0.00011539,2]
[347068669,1735489842077,-662.99,0.00011539,2]
[347068671,1735489842086,-502.42590619,0.00011539,2]
[347068673,1735489842094,-500.0,0.00011539,2]
[347068675,1735489842103,-500.0,0.00011539,2]
[347068677,1735489842113,-530.53,0.00011539,2]
[347068679,1735489842122,-2528.19,0.00011539,2]
[347068681,1735489842131,-500.0,0.00011539,2]
[347068683,1735489842140,-500.0,0.00011539,2]
[347068685,1735489842148,-676.14,0.00011539,2]
[347068687,1735489842157,-500.0,0.00011539,2]
[347068689,1735489842166,-540.97,0.00011539,2]
[347068691,1735489842176,-869.7,0.00011539,2]
[347068693,1735489842184,-500.0,0.00011539,2]
[347068695,1735489842193,-885.94,0.00011539,2]
[347068697,1735489842202,-500.0,0.00011539,2]
[347068699,1735489842211,-500.0,0.00011539,2]
[347068701,1735489842221,-500.0,0.00011539,2]
[347068703,1735489842230,-1387.4,0.00011539,2]
[347068705,1735489842240,-500.0,0.00011539,2]
[347068707,1735489842249,-500.0,0.00011539,2]
[347068709,1735489842259,-500.0,0.00011539,2]
[347068711,1735489842268,-500.0,0.00011539,2]
[347068713,1735489842277,-6099.26,0.00011539,2]
[347068715,1735489842286,-707.66,0.00011539,2]
[347068717,1735489842295,-1169.27,0.00011539,2]
[347068719,1735489842304,-732.6,0.00011539,2]
[347068721,1735489842313,-500.0,0.00011539,2]
[347068723,1735489842322,-1183.54,0.00011539,2]
[347068725,1735489842331,-555.13,0.00011539,2]
[347068727,1735489842340,-3945.51,0.00011539,2]
[347068729,1735489842348,-500.0,0.00011539,2]
[347068731,1735489842357,-500.0,0.00011539,2]
[347068733,1735489842366,-500.0,0.00011539,2]
[347068735,1735489842375,-2075.97,0.00011539,2]
[347068737,1735489842384,-654.05,0.00011539,2]
[347068738,1735489842393,-500.0,0.00011539,2]
[347068741,1735489842403,-1345.89,0.00011539,2]
[347068742,1735489842412,-608.08239022,0.00011539,2]
[347068744,1735489842421,-14284.14,0.00011539,2]
[347068746,1735489842430,-1061.45,0.00011539,2]
[347068748,1735489842439,-500.0,0.00011539,2]
[347068750,1735489842449,-1058.29,0.00011539,2]
[347068753,1735489842460,-500.0,0.00011539,2]
[347068755,1735489842469,-10147.36,0.00011539,2]
[347068757,1735489842479,-500.0,0.00011539,2]
[347068759,1735489842488,-853.86,0.00011539,2]
[347068760,1735489842497,-1697.41,0.00011539,2]
[347068763,1735489842506,-500.0,0.00011539,2]
[347068765,1735489842515,-1107.23,0.00011539,2]
[347068766,1735489842524,-547.58,0.00011539,2]
[347068768,1735489842533,-1236.84,0.00011539,2]
[347068770,1735489842542,-500.0,0.00011539,2]
[347068773,1735489842552,-1403.26,0.00011539,2]
[347068775,1735489842561,-245.17119136,0.00011539,2]
[347068777,1735489842570,-638.45,0.00011539,2]
[347068779,1735489842579,-954.3,0.00011539,2]
[347068781,1735489842589,-749.83,0.00011539,2]
[347068783,1735489842598,-1321.25,0.00011539,2]
[347068785,1735489842607,-3600.62,0.00011539,2]
[347068787,1735489842616,-296.30595053,0.00011539,2]
[347068789,1735489842626,-500.0,0.00011539,2]
[347068791,1735489842635,-750.79,0.00011539,2]
[347068793,1735489842644,-776.0,0.00011539,2]
[347068794,1735489842653,-2295.24,0.00011539,2]
[347068797,1735489842662,-624.17660063,0.00011539,2]
[347068799,1735489842671,-637.29,0.00011539,2]
[347068801,1735489842681,-743.69,0.00011539,2]
[347068803,1735489842689,-528.46,0.00011539,2]
[347068804,1735489842699,-16509.04,0.00011539,2]
[347068805,1735489842708,-1355.28,0.00011539,2]
[347068806,1735489842717,-2104.69,0.00011539,2]
[347068809,1735489842726,-893.81,0.00011539,2]
[347068812,1735489842735,-773.78,0.00011539,2]
[347068815,1735489842748,-500.0,0.00011539,2]
[347068819,1735489842757,-890.01,0.00011539,2]
[347068823,1735489842766,-342.52621323,0.00011539,2]
[347068825,1735489842776,-1251.31,0.00011539,2]
[347068829,1735489842786,-500.0,0.00011539,2]
[347068834,1735489842795,-500.0,0.00011539,2]
[347068839,1735489842804,-909.43,0.00011539,2]
[347068841,1735489842814,-500.0,0.00011539,2]
[347068844,1735489842825,-1051.79,0.00011539,2]
[347068846,1735489842835,-1988.73,0.00011539,2]
[347068848,1735489842845,-500.0,0.00011539,2]
[347068850,1735489842854,-1184.67,0.00011539,2]
[347068852,1735489842865,-500.0,0.00011539,2]
[347068854,1735489842875,-2308.07,0.00011539,2]
[347068856,1735489842885,-500.0,0.00011539,2]
[347068858,1735489842895,-500.0,0.00011539,2]
[347068860,1735489842905,-705.54,0.00011539,2]
[347068862,1735489842914,-1060.41,0.00011539,2]
[347068864,1735489842924,-2299.51,0.00011539,2]
[347068866,1735489842934,-503.39304087,0.00011539,2]
[347068868,1735489842943,-851.46,0.00011539,2]
[347068870,1735489842952,-500.0,0.00011539,2]
[347068872,1735489842961,-964.97,0.00011539,2]
[347068874,1735489842970,-1853.38,0.00011539,2]
[347068876,1735489842979,-1075.86,0.00011539,2]
[347068878,1735489842989,-500.0,0.00011539,2]
[347068880,1735489842999,-2115.26,0.00011539,2]
[347068882,1735489843008,-1352.22,0.00011539,2]
[347068884,1735489843017,-500.0,0.00011539,2]
[347068886,1735489843027,-639.4,0.00011539,2]
[347068888,1735489843036,-849.33,0.00011539,2]
[347068890,1735489843046,-502.62,0.0001154,2]
[347068892,1735489843055,-500.0,0.0001154,2]
[347068894,1735489843065,-3181.36,0.0001154,2]
[347068896,1735489843074,-6329.31,0.0001154,2]
[347068898,1735489843083,-3277.49,0.0001154,2]
[347068900,1735489843092,-12312.34,0.0001154,2]
[347068902,1735489843102,-500.0,0.0001154,2]
[347068904,1735489843111,-3574.32,0.0001154,2]
[347068906,1735489843120,-5169.61,0.0001154,2]
[347068908,1735489843130,-3943.77,0.0001154,2]
[347068910,1735489843139,-3305.08,0.0001154,2]
[347068912,1735489843149,-739.21,0.0001154,2]
[347068914,1735489843158,-7280.0,0.0001154,2]
[347068916,1735489843168,-1599.31,0.0001154,2]
[347068917,1735489843177,-719.93,0.0001154,2]
[347068918,1735489843186,-1192.86,0.0001154,2]
[347068920,1735489843196,-1143.16,0.0001154,2]
[347068922,1735489843205,-2691.11,0.0001154,2]
[347068923,1735489843214,-2885.5,0.0001154,2]
[347068924,1735489843223,-2387.4,0.0001154,2]
[347068926,1735489843233,-4451.17,0.0001154,2]
[347068927,1735489843243,-2274.63,0.0001154,2]
[347068929,1735489843252,-6071.49,0.0001154,2]
[347068930,1735489843262,-3460.09,0.0001154,2]
[347068931,1735489843272,-922.86,0.0001154,2]
[347068932,1735489843281,-1156.67,0.0001154,2]
[347068933,1735489843290,-2396.52,0.0001154,2]
[347068935,1735489843300,-3499.32,0.0001154,2]
[347068936,1735489843309,-2481.53,0.0001154,2]
[347068937,1735489843318,-2018.38,0.0001154,2]
[347068938,1735489843327,-683.43,0.0001154,2]
[347068939,1735489843337,-5328.55,0.0001154,2]
[347068940,1735489843346,-2716.03,0.0001154,2]
[347068941,1735489843355,-3917.79,0.0001154,2]
[347068942,1735489843364,-1605.45,0.0001154,2]
[347068943,1735489843374,-45088.26,0.0001154,2]
[347068944,1735489843383,-28481.33,0.0001154,2]
[347068945,1735489843392,-6385.49,0.0001154,2]
[347068946,1735489843402,-1823.7,0.0001154,2]
[347068948,1735489843411,-5818.51,0.00011541,2]
[347068949,1735489843420,-1156.67,0.00011541,2]
[347068950,1735489843430,-1291.66,0.00011541,2]
[347068951,1735489843439,-1926.58,0.00011541,2]
[347068952,1735489843449,-4336.05,0.00011541,2]
[347068953,1735489843458,-5033.79,0.00011541,2]
[347068954,1735489843468,-500.0,0.00011542,2]
[347068955,1735489843477,-500.0,0.00011543,2]
[347068956,1735489843486,-700.0,0.000116,4]
[347068957,1735489843497,-1400.0,0.000117,4]
[347068958,1735489843506,-510.97,0.00011712,2]
[347068959,1735489843515,-1306.56,0.00011712,2]
[347068960,1735489843524,-500.0,0.00011712,2]
[347068961,1735489843534,-968.82,0.00011712,2]
[347068962,1735489843544,-1952.26,0.00011712,2]
[347068963,1735489843553,-1407.8,0.00011712,2]